[Event "Titled Tuesday Blitz November 29 Early 2022"]
[White "Nasir, Zehn"]
[Black "Boyer, Mahel"]
[WhiteFideId "2613239"]
[BlackFideId "45102422"]
[WhiteElo "1993"]
[BlackElo "2454"]
[Result "0-1"]
[Round "04"]
[TimeControl "180+1"]
[Date "2022.11.30"]
[WhiteClock "0:00:11"]
[BlackClock "0:00:08"]

1. e4 {[%clk 0:03:00]}  c5 {[%clk 0:01:52]} 2. Nf3 {[%clk 0:03:00]}  d6 {[%clk 0:01:52]} 3. d4 {[%clk 0:03:00]}  cxd4 {[%clk 0:01:44]} 4. Nxd4 {[%clk 0:03:01]}  Nf6 {[%clk 0:01:44]} 5. Nc3 {[%clk 0:03:01]}  a6 {[%clk 0:01:43]} 6. h3 {[%clk 0:03:01]}  h5 {[%clk 0:01:41]} 7. Bg5 {[%clk 0:02:57]}  Nc6 {[%clk 0:01:40]} 8. Bc4 {[%clk 0:02:44]}  e6 {[%clk 0:01:40]} 9. Nxc6 {[%clk 0:02:09]}  bxc6 {[%clk 0:01:41]} 10. e5 {[%clk 0:02:09]}  Qa5 {[%clk 0:01:40]} 11. Bxf6 {[%clk 0:01:53]}  gxf6 {[%clk 0:01:33]} 12. exd6 {[%clk 0:01:53]}  Qe5+ {[%clk 0:01:29]} 13. Qe2 {[%clk 0:01:53]}  Bxd6 {[%clk 0:01:24]} 14. Qxe5 {[%clk 0:01:49]}  Bxe5 {[%clk 0:01:25]} 15. Na4 {[%clk 0:01:44]}  Rb8 {[%clk 0:01:04]} 16. c3 {[%clk 0:01:40]}  h4 {[%clk 0:00:56]} 17. O-O-O {[%clk 0:01:32]}  Rg8 {[%clk 0:00:55]} 18. Bf1 {[%clk 0:01:12]}  Rb5 {[%clk 0:00:48]} 19. Bxb5 {[%clk 0:01:09]}  cxb5 {[%clk 0:00:49]} 20. Nb6 {[%clk 0:01:02]}  Bb7 {[%clk 0:00:49]} 21. Nd7 {[%clk 0:00:56]}  Bf4+ {[%clk 0:00:46]} 22. Kb1 {[%clk 0:00:53]}  Ke7 {[%clk 0:00:27]} 23. Nc5 {[%clk 0:00:48]}  Bxg2 {[%clk 0:00:26]} 24. Rhg1 {[%clk 0:00:46]}  Bd6 {[%clk 0:00:21]} 25. Nd3 {[%clk 0:00:41]}  Rg5 {[%clk 0:00:18]} 26. f4 {[%clk 0:00:39]}  Rg3 {[%clk 0:00:18]} 27. Nf2 {[%clk 0:00:36]}  Bc5 {[%clk 0:00:15]} 28. Rd2 {[%clk 0:00:32]}  Bf3 {[%clk 0:00:12]} 29. Rf1 {[%clk 0:00:25]}  Be3 {[%clk 0:00:12]} 30. Rc2 {[%clk 0:00:24]}  Bxf4 {[%clk 0:00:11]} 31. Ka1 {[%clk 0:00:22]}  Bg2 {[%clk 0:00:10]} 32. Rg1 {[%clk 0:00:20]}  Be3 {[%clk 0:00:07]} 33. Re1 {[%clk 0:00:16]}  f5 {[%clk 0:00:06]} 34. Nd3 {[%clk 0:00:13]}  f6 {[%clk 0:00:04]} 35. Kb1 {[%clk 0:00:10]}  f4 {[%clk 0:00:04]} 36. Nb4 {[%clk 0:00:09]}  e5 {[%clk 0:00:04]} 37. Nc6+ {[%clk 0:00:09]}  Bxc6 {[%clk 0:00:03]} 38. Rce2 {[%clk 0:00:09]}  Be4+ {[%clk 0:00:04]} 39. Ka1 {[%clk 0:00:09]}  Bd3 {[%clk 0:00:04]} 40. Rxe3 {[%clk 0:00:09]}  fxe3 {[%clk 0:00:05]} 41. Rd1 {[%clk 0:00:10]}  e2 {[%clk 0:00:05]} 42. Re1 {[%clk 0:00:11]}  Rf3 {[%clk 0:00:06]} 43. a4 {[%clk 0:00:11]}  Rf1 {[%clk 0:00:07]} 44. Ka2 {[%clk 0:00:11]}  Rxe1 {[%clk 0:00:08]} 45. Kb3 {[%clk 0:00:11]}  Bc4+ {[%clk 0:00:08]} 0-1


[Site "https://www.chess.com"]

[Event "Titled Tuesday Blitz November 29 Early 2022"]
[White "Orzech, Dominik"]
[Black "Vargas Pereda, Jesus Manue"]
[WhiteFideId "1115065"]
[BlackFideId "5115710"]
[WhiteElo "2272"]
[BlackElo "1950"]
[Result "1-0"]
[Round "04"]
[TimeControl "180+1"]
[Date "2022.11.30"]
[WhiteClock "0:00:08"]
[BlackClock "0:00:49"]

1. Nf3 {[%clk 0:00:26]}  Nf6 {[%clk 0:02:39]} 2. c4 {[%clk 0:00:27]}  g6 {[%clk 0:02:38]} 3. Nc3 {[%clk 0:00:28]}  Bg7 {[%clk 0:02:38]} 4. g3 {[%clk 0:00:29]}  O-O {[%clk 0:02:37]} 5. Bg2 {[%clk 0:00:30]}  d6 {[%clk 0:02:37]} 6. d4 {[%clk 0:00:31]}  Nc6 {[%clk 0:02:27]} 7. O-O {[%clk 0:00:32]}  e5 {[%clk 0:02:27]} 8. d5 {[%clk 0:00:31]}  Ne7 {[%clk 0:02:26]} 9. c5 {[%clk 0:00:30]}  Ne8 {[%clk 0:02:17]} 10. cxd6 {[%clk 0:00:29]}  cxd6 {[%clk 0:02:17]} 11. Qb3 {[%clk 0:00:30]}  f5 {[%clk 0:02:14]} 12. a4 {[%clk 0:00:28]}  Nf6 {[%clk 0:02:10]} 13. Ng5 {[%clk 0:00:19]}  Rb8 {[%clk 0:02:08]} 14. a5 {[%clk 0:00:18]}  a6 {[%clk 0:02:03]} 15. Rd1 {[%clk 0:00:18]}  Bd7 {[%clk 0:01:58]} 16. Bd2 {[%clk 0:00:17]}  f4 {[%clk 0:01:52]} 17. Na4 {[%clk 0:00:16]}  h6 {[%clk 0:01:49]} 18. Ne6 {[%clk 0:00:16]}  Bxe6 {[%clk 0:01:49]} 19. dxe6 {[%clk 0:00:16]}  d5 {[%clk 0:01:42]} 20. Nb6 {[%clk 0:00:16]}  e4 {[%clk 0:01:41]} 21. Bb4 {[%clk 0:00:16]}  Re8 {[%clk 0:01:38]} 22. gxf4 {[%clk 0:00:15]}  Nc6 {[%clk 0:01:31]} 23. Nxd5 {[%clk 0:00:15]}  Nxb4 {[%clk 0:01:28]} 24. e7 {[%clk 0:00:13]}  Qc8 {[%clk 0:01:14]} 25. Nxf6+ {[%clk 0:00:11]}  Kh8 {[%clk 0:01:14]} 26. Nxe8 {[%clk 0:00:11]}  Qxe8 {[%clk 0:01:14]} 27. Qxb4 {[%clk 0:00:12]}  Bf6 {[%clk 0:01:09]} 28. Qxe4 {[%clk 0:00:10]}  Qxe7 {[%clk 0:01:09]} 29. Qxe7 {[%clk 0:00:10]}  Bxe7 {[%clk 0:01:09]} 30. Rd7 {[%clk 0:00:11]}  Bf6 {[%clk 0:01:08]} 31. Rxb7 {[%clk 0:00:12]}  Rd8 {[%clk 0:01:07]} 32. Rb6 {[%clk 0:00:12]}  Bxb2 {[%clk 0:01:06]} 33. Rxb2 {[%clk 0:00:11]}  Kg7 {[%clk 0:01:06]} 34. Rb7+ {[%clk 0:00:10]}  Kf6 {[%clk 0:01:06]} 35. Rb6+ {[%clk 0:00:11]}  Kf5 {[%clk 0:01:05]} 36. e3 {[%clk 0:00:11]}  Re8 {[%clk 0:00:59]} 37. Rc1 {[%clk 0:00:09]}  Kg4 {[%clk 0:00:54]} 38. h3+ {[%clk 0:00:08]}  Kh5 {[%clk 0:00:53]} 39. Rc5+ {[%clk 0:00:07]}  g5 {[%clk 0:00:53]} 40. Bf3+ {[%clk 0:00:07]}  Kh4 {[%clk 0:00:49]} 41. Rxh6# {[%clk 0:00:08]} 1-0


[Site "https://www.chess.com"]

[Event "Titled Tuesday Blitz November 29 Early 2022"]
[White "Pakleza, Zbigniew"]
[Black "Polanco Nunez, Yoel Estarling"]
[WhiteFideId "1119290"]
[BlackFideId "6401783"]
[WhiteElo "2411"]
[BlackElo "2132"]
[Result "1-0"]
[Round "04"]
[TimeControl "180+1"]
[Date "2022.11.30"]
[WhiteClock "0:00:46"]
[BlackClock "0:00:58"]

1. d4 {[%clk 0:03:00]}  Nf6 {[%clk 0:02:48]} 2. Nf3 {[%clk 0:03:01]}  d5 {[%clk 0:02:48]} 3. Bf4 {[%clk 0:03:01]}  c5 {[%clk 0:02:48]} 4. c3 {[%clk 0:03:01]}  Nc6 {[%clk 0:02:49]} 5. Nbd2 {[%clk 0:03:01]}  cxd4 {[%clk 0:02:42]} 6. cxd4 {[%clk 0:02:58]}  Bf5 {[%clk 0:02:42]} 7. e3 {[%clk 0:02:55]}  e6 {[%clk 0:02:41]} 8. Qb3 {[%clk 0:02:54]}  Qb6 {[%clk 0:02:35]} 9. Qxb6 {[%clk 0:02:53]}  axb6 {[%clk 0:02:35]} 10. Bb5 {[%clk 0:02:52]}  Bb4 {[%clk 0:02:35]} 11. Ke2 {[%clk 0:02:52]}  O-O {[%clk 0:02:35]} 12. Rhc1 {[%clk 0:02:50]}  Rfc8 {[%clk 0:02:34]} 13. a3 {[%clk 0:02:50]}  Bf8 {[%clk 0:02:33]} 14. Ne5 {[%clk 0:02:36]}  Nxe5 {[%clk 0:02:31]} 15. Bxe5 {[%clk 0:02:37]}  h6 {[%clk 0:02:24]} 16. Bc7 {[%clk 0:02:30]}  Ra5 {[%clk 0:02:09]} 17. a4 {[%clk 0:02:19]}  Be7 {[%clk 0:01:52]} 18. Bxb6 {[%clk 0:02:16]}  Raa8 {[%clk 0:01:52]} 19. f3 {[%clk 0:02:11]}  Bd6 {[%clk 0:01:36]} 20. g4 {[%clk 0:02:05]}  Bg6 {[%clk 0:01:35]} 21. h3 {[%clk 0:02:06]}  e5 {[%clk 0:01:36]} 22. dxe5 {[%clk 0:02:01]}  Bxe5 {[%clk 0:01:36]} 23. Bd4 {[%clk 0:02:01]}  Bxd4 {[%clk 0:01:33]} 24. exd4 {[%clk 0:02:02]}  h5 {[%clk 0:01:27]} 25. Nb3 {[%clk 0:01:49]}  b6 {[%clk 0:01:26]} 26. Rxc8+ {[%clk 0:01:45]}  Rxc8 {[%clk 0:01:26]} 27. Rc1 {[%clk 0:01:45]}  Rb8 {[%clk 0:01:24]} 28. Nd2 {[%clk 0:01:36]}  hxg4 {[%clk 0:01:21]} 29. hxg4 {[%clk 0:01:37]}  Nh7 {[%clk 0:01:22]} 30. Ba6 {[%clk 0:01:16]}  Nf8 {[%clk 0:01:18]} 31. Rc8 {[%clk 0:01:14]}  Rxc8 {[%clk 0:01:18]} 32. Bxc8 {[%clk 0:01:15]}  Bc2 {[%clk 0:01:17]} 33. b3 {[%clk 0:01:08]}  Ng6 {[%clk 0:01:17]} 34. Ke3 {[%clk 0:01:01]}  Ne7 {[%clk 0:01:17]} 35. Bd7 {[%clk 0:01:00]}  Kf8 {[%clk 0:01:13]} 36. b4 {[%clk 0:00:57]}  Ng8 {[%clk 0:01:09]} 37. a5 {[%clk 0:00:55]}  Nf6 {[%clk 0:00:58]} 38. a6 {[%clk 0:00:46]} 1-0


[Site "https://www.chess.com"]

[Event "Titled Tuesday Blitz November 29 Early 2022"]
[White "Papp, Levente"]
[Black "Jain, Naveen"]
[WhiteFideId "751243"]
[BlackFideId "5003970"]
[WhiteElo "2380"]
[BlackElo "2036"]
[Result "1-0"]
[Round "04"]
[TimeControl "180+1"]
[Date "2022.11.30"]
[WhiteClock "0:00:15"]
[BlackClock "0:00:02"]

1. d4 {[%clk 0:03:00]}  Nf6 {[%clk 0:02:55]} 2. Nc3 {[%clk 0:03:01]}  c5 {[%clk 0:02:55]} 3. d5 {[%clk 0:02:55]}  d6 {[%clk 0:02:54]} 4. g3 {[%clk 0:02:52]}  g6 {[%clk 0:02:54]} 5. Bg2 {[%clk 0:02:52]}  Bg7 {[%clk 0:02:55]} 6. e4 {[%clk 0:02:49]}  O-O {[%clk 0:02:55]} 7. Nge2 {[%clk 0:02:50]}  e6 {[%clk 0:02:48]} 8. O-O {[%clk 0:02:47]}  exd5 {[%clk 0:02:49]} 9. exd5 {[%clk 0:02:43]}  Re8 {[%clk 0:02:46]} 10. Bf4 {[%clk 0:02:22]}  Nh5 {[%clk 0:02:31]} 11. Be3 {[%clk 0:02:22]}  Nd7 {[%clk 0:02:23]} 12. Qc1 {[%clk 0:02:01]}  b5 {[%clk 0:02:07]} 13. Nxb5 {[%clk 0:01:51]}  Nb6 {[%clk 0:02:07]} 14. c4 {[%clk 0:01:38]}  a6 {[%clk 0:02:07]} 15. Na3 {[%clk 0:01:38]}  Na4 {[%clk 0:02:05]} 16. b3 {[%clk 0:01:07]}  Bxa1 {[%clk 0:01:41]} 17. Qxa1 {[%clk 0:01:07]}  Rxe3 {[%clk 0:01:39]} 18. fxe3 {[%clk 0:01:05]}  Nb6 {[%clk 0:01:40]} 19. Nf4 {[%clk 0:00:56]}  Nxf4 {[%clk 0:01:37]} 20. exf4 {[%clk 0:00:52]}  Bf5 {[%clk 0:01:20]} 21. Re1 {[%clk 0:00:51]}  Qd7 {[%clk 0:01:17]} 22. Nb1 {[%clk 0:00:44]}  Re8 {[%clk 0:01:06]} 23. Nd2 {[%clk 0:00:41]}  a5 {[%clk 0:01:03]} 24. g4 {[%clk 0:00:31]}  Bxg4 {[%clk 0:00:32]} 25. Ne4 {[%clk 0:00:28]}  Rxe4 {[%clk 0:00:20]} 26. Rxe4 {[%clk 0:00:29]}  Bf5 {[%clk 0:00:16]} 27. Re3 {[%clk 0:00:29]}  Qd8 {[%clk 0:00:12]} 28. Qe1 {[%clk 0:00:28]}  Kg7 {[%clk 0:00:11]} 29. Qxa5 {[%clk 0:00:25]}  Qf6 {[%clk 0:00:05]} 30. Qc3 {[%clk 0:00:25]}  Nd7 {[%clk 0:00:01]} 31. Qxf6+ {[%clk 0:00:23]}  Nxf6 {[%clk 0:00:02]} 32. a3 {[%clk 0:00:21]}  Nd7 {[%clk 0:00:02]} 33. b4 {[%clk 0:00:16]}  Nb6 {[%clk 0:00:03]} 34. Bf1 {[%clk 0:00:16]}  Na4 {[%clk 0:00:02]} 35. Re8 {[%clk 0:00:15]} 1-0


[Site "https://www.chess.com"]

[Event "Titled Tuesday Blitz November 29 Early 2022"]
[White "Paravyan, David"]
[Black "Bacrot, Etienne"]
[WhiteFideId "4194985"]
[BlackFideId "605506"]
[WhiteElo "2546"]
[BlackElo "2666"]
[Result "1/2-1/2"]
[Round "04"]
[TimeControl "180+1"]
[Date "2022.11.30"]
[WhiteClock "0:00:10"]
[BlackClock "0:00:12"]

1. e4 {[%clk 0:03:00]}  c5 {[%clk 0:03:00]} 2. Nf3 {[%clk 0:03:00]}  d6 {[%clk 0:03:00]} 3. d4 {[%clk 0:03:01]}  cxd4 {[%clk 0:03:01]} 4. Nxd4 {[%clk 0:03:02]}  Nf6 {[%clk 0:03:01]} 5. Nc3 {[%clk 0:03:02]}  Nc6 {[%clk 0:03:02]} 6. Bg5 {[%clk 0:03:03]}  e6 {[%clk 0:03:02]} 7. Qd2 {[%clk 0:03:02]}  a6 {[%clk 0:03:03]} 8. Nxc6 {[%clk 0:03:02]}  bxc6 {[%clk 0:03:03]} 9. O-O-O {[%clk 0:03:02]}  Qc7 {[%clk 0:02:59]} 10. Bc4 {[%clk 0:02:57]}  Be7 {[%clk 0:02:58]} 11. Bxf6 {[%clk 0:02:57]}  gxf6 {[%clk 0:02:57]} 12. Rhe1 {[%clk 0:02:55]}  h5 {[%clk 0:02:55]} 13. f4 {[%clk 0:02:52]}  Bb7 {[%clk 0:02:55]} 14. Kb1 {[%clk 0:02:51]}  d5 {[%clk 0:02:46]} 15. Bb3 {[%clk 0:02:47]}  O-O-O {[%clk 0:02:46]} 16. Qe2 {[%clk 0:02:42]}  Bd6 {[%clk 0:02:37]} 17. g3 {[%clk 0:02:33]}  h4 {[%clk 0:02:24]} 18. a3 {[%clk 0:02:33]}  hxg3 {[%clk 0:02:24]} 19. hxg3 {[%clk 0:02:34]}  Kb8 {[%clk 0:02:23]} 20. Na4 {[%clk 0:02:33]}  dxe4 {[%clk 0:02:16]} 21. Qxe4 {[%clk 0:02:29]}  c5 {[%clk 0:02:09]} 22. Qc4 {[%clk 0:02:19]}  f5 {[%clk 0:02:06]} 23. Rd3 {[%clk 0:02:11]}  Be7 {[%clk 0:02:01]} 24. Nc3 {[%clk 0:01:22]}  Rxd3 {[%clk 0:01:53]} 25. Qxd3 {[%clk 0:01:23]}  Rd8 {[%clk 0:01:52]} 26. Qe2 {[%clk 0:01:19]}  Bf6 {[%clk 0:01:51]} 27. Rd1 {[%clk 0:01:19]}  Bxc3 {[%clk 0:01:16]} 28. Rxd8+ {[%clk 0:01:18]}  Qxd8 {[%clk 0:01:17]} 29. bxc3 {[%clk 0:01:18]}  Qd6 {[%clk 0:01:08]} 30. Kc1 {[%clk 0:01:12]}  Ka7 {[%clk 0:01:06]} 31. Kb2 {[%clk 0:01:06]}  Bd5 {[%clk 0:01:04]} 32. Qd3 {[%clk 0:00:55]}  Qc6 {[%clk 0:01:01]} 33. c4 {[%clk 0:00:46]}  Be4 {[%clk 0:01:00]} 34. Qd8 {[%clk 0:00:46]}  Kb7 {[%clk 0:00:58]} 35. Kc3 {[%clk 0:00:26]}  Qc7 {[%clk 0:00:58]} 36. Qxc7+ {[%clk 0:00:20]}  Kxc7 {[%clk 0:00:58]} 37. Kd2 {[%clk 0:00:20]}  Bc6 {[%clk 0:00:53]} 38. c3 {[%clk 0:00:20]}  Kd6 {[%clk 0:00:53]} 39. Bd1 {[%clk 0:00:20]}  f6 {[%clk 0:00:49]} 40. Ke3 {[%clk 0:00:20]}  e5 {[%clk 0:00:49]} 41. Bc2 {[%clk 0:00:20]}  Bd7 {[%clk 0:00:49]} 42. Bd3 {[%clk 0:00:19]}  Be6 {[%clk 0:00:50]} 43. Bc2 {[%clk 0:00:19]}  Kc6 {[%clk 0:00:49]} 44. Kd2 {[%clk 0:00:17]}  Kb6 {[%clk 0:00:49]} 45. Bb3 {[%clk 0:00:15]}  Kc7 {[%clk 0:00:48]} 46. Bc2 {[%clk 0:00:15]}  Kd6 {[%clk 0:00:47]} 47. Bb1 {[%clk 0:00:14]}  Ke7 {[%clk 0:00:44]} 48. Bc2 {[%clk 0:00:14]}  Kf7 {[%clk 0:00:44]} 49. Ke3 {[%clk 0:00:14]}  Kg7 {[%clk 0:00:41]} 50. Bb1 {[%clk 0:00:14]}  Kh6 {[%clk 0:00:41]} 51. Bc2 {[%clk 0:00:13]}  Kh5 {[%clk 0:00:41]} 52. Bd1+ {[%clk 0:00:14]}  Kg6 {[%clk 0:00:41]} 53. Bc2 {[%clk 0:00:14]}  Bxc4 {[%clk 0:00:39]} 54. g4 {[%clk 0:00:12]}  Be6 {[%clk 0:00:40]} 55. Bb1 {[%clk 0:00:08]}  Bd7 {[%clk 0:00:35]} 56. Bc2 {[%clk 0:00:08]}  a5 {[%clk 0:00:35]} 57. Bb1 {[%clk 0:00:08]}  Be6 {[%clk 0:00:32]} 58. Bc2 {[%clk 0:00:08]}  Bc8 {[%clk 0:00:25]} 59. Bb1 {[%clk 0:00:09]}  Bd7 {[%clk 0:00:12]} 60. Bc2 {[%clk 0:00:09]}  Be6 {[%clk 0:00:11]} 61. Bb1 {[%clk 0:00:09]}  Bd7 {[%clk 0:00:12]} 62. Bc2 {[%clk 0:00:09]}  Be6 {[%clk 0:00:12]} 63. Bb1 {[%clk 0:00:10]}  Bd7 {[%clk 0:00:12]} 1/2-1/2


[Site "https://www.chess.com"]

[Event "Titled Tuesday Blitz November 29 Early 2022"]
[White "Pinheiro, Iung Alicio de O."]
[Black "Bogaudinov, Rushan"]
[WhiteFideId "2104350"]
[BlackFideId "4129288"]
[WhiteElo "2283"]
[BlackElo "1997"]
[Result "1-0"]
[Round "04"]
[TimeControl "180+1"]
[Date "2022.11.30"]
[WhiteClock "0:00:22"]
[BlackClock "0:00:27"]

1. d4 {[%clk 0:03:00]}  d5 {[%clk 0:02:59]} 2. Bf4 {[%clk 0:02:58]}  Nf6 {[%clk 0:02:59]} 3. e3 {[%clk 0:02:58]}  g6 {[%clk 0:02:59]} 4. h4 {[%clk 0:02:54]}  h6 {[%clk 0:02:56]} 5. Nc3 {[%clk 0:02:48]}  Bg7 {[%clk 0:02:55]} 6. Nb5 {[%clk 0:02:39]}  Na6 {[%clk 0:02:53]} 7. h5 {[%clk 0:02:39]}  g5 {[%clk 0:02:52]} 8. Be5 {[%clk 0:02:39]}  c6 {[%clk 0:02:51]} 9. Nc3 {[%clk 0:02:39]}  Kf8 {[%clk 0:02:46]} 10. f4 {[%clk 0:02:23]}  g4 {[%clk 0:02:41]} 11. Nge2 {[%clk 0:02:16]}  Nc7 {[%clk 0:02:19]} 12. Ng3 {[%clk 0:02:09]}  Nce8 {[%clk 0:02:18]} 13. Bd3 {[%clk 0:02:00]}  b5 {[%clk 0:02:17]} 14. a4 {[%clk 0:01:50]}  b4 {[%clk 0:02:16]} 15. Na2 {[%clk 0:01:50]}  a5 {[%clk 0:02:16]} 16. c3 {[%clk 0:01:51]}  bxc3 {[%clk 0:02:08]} 17. Nxc3 {[%clk 0:01:50]}  Nd6 {[%clk 0:02:08]} 18. Rc1 {[%clk 0:01:48]}  Rb8 {[%clk 0:02:05]} 19. Qc2 {[%clk 0:01:35]}  Qb6 {[%clk 0:02:02]} 20. Nd1 {[%clk 0:01:24]}  Bd7 {[%clk 0:02:01]} 21. O-O {[%clk 0:01:24]}  Qb3 {[%clk 0:01:53]} 22. Qd2 {[%clk 0:01:01]}  Qxa4 {[%clk 0:01:50]} 23. Rc5 {[%clk 0:01:01]}  Qb4 {[%clk 0:01:49]} 24. Qc2 {[%clk 0:00:55]}  a4 {[%clk 0:01:46]} 25. Nc3 {[%clk 0:00:50]}  Qxb2 {[%clk 0:01:42]} 26. Qxa4 {[%clk 0:00:50]}  Qd2 {[%clk 0:01:29]} 27. Qc2 {[%clk 0:00:34]}  Qxe3+ {[%clk 0:01:25]} 28. Kh2 {[%clk 0:00:34]}  Nde4 {[%clk 0:01:22]} 29. Bxe4 {[%clk 0:00:32]}  Nxe4 {[%clk 0:01:19]} 30. Ncxe4 {[%clk 0:00:31]}  dxe4 {[%clk 0:01:18]} 31. Bxb8 {[%clk 0:00:30]}  Bxd4 {[%clk 0:01:15]} 32. Rc4 {[%clk 0:00:25]}  c5 {[%clk 0:01:06]} 33. Be5 {[%clk 0:00:24]}  f6 {[%clk 0:01:07]} 34. Bxd4 {[%clk 0:00:24]}  cxd4 {[%clk 0:01:07]} 35. Rc7 {[%clk 0:00:22]}  d3 {[%clk 0:00:52]} 36. Qc3 {[%clk 0:00:20]}  Ke8 {[%clk 0:00:44]} 37. Rc8+ {[%clk 0:00:20]}  Bxc8 {[%clk 0:00:43]} 38. Qxc8+ {[%clk 0:00:20]}  Kf7 {[%clk 0:00:43]} 39. Qxh8 {[%clk 0:00:21]}  d2 {[%clk 0:00:43]} 40. Qh7+ {[%clk 0:00:21]}  Ke8 {[%clk 0:00:38]} 41. Qxe7+ {[%clk 0:00:21]}  Kxe7 {[%clk 0:00:38]} 42. Nf5+ {[%clk 0:00:21]}  Ke6 {[%clk 0:00:30]} 43. Nxe3 {[%clk 0:00:22]}  Kd6 {[%clk 0:00:27]} 44. Rd1 {[%clk 0:00:22]} 1-0


[Site "https://www.chess.com"]

[Event "Titled Tuesday Blitz November 29 Early 2022"]
[White "Postny, Evgeny"]
[Black "Le, Tuan Minh"]
[WhiteFideId "2804344"]
[BlackFideId "12401153"]
[WhiteElo "2476"]
[BlackElo "2530"]
[Result "0-1"]
[Round "04"]
[TimeControl "180+1"]
[Date "2022.11.30"]
[WhiteClock "0:00:01"]
[BlackClock "0:00:06"]

1. e4 {[%clk 0:03:00]}  c5 {[%clk 0:02:59]} 2. Nf3 {[%clk 0:03:00]}  Nf6 {[%clk 0:02:59]} 3. e5 {[%clk 0:02:59]}  Nd5 {[%clk 0:02:59]} 4. Nc3 {[%clk 0:03:00]}  e6 {[%clk 0:02:59]} 5. Bc4 {[%clk 0:02:57]}  Nb6 {[%clk 0:02:59]} 6. Bd3 {[%clk 0:02:52]}  Nc6 {[%clk 0:02:58]} 7. O-O {[%clk 0:02:52]}  d6 {[%clk 0:02:57]} 8. exd6 {[%clk 0:02:50]}  Bxd6 {[%clk 0:02:58]} 9. Be4 {[%clk 0:02:47]}  Nd4 {[%clk 0:02:58]} 10. a4 {[%clk 0:02:37]}  a6 {[%clk 0:02:47]} 11. a5 {[%clk 0:02:35]}  Nd7 {[%clk 0:02:46]} 12. Nxd4 {[%clk 0:02:27]}  cxd4 {[%clk 0:02:46]} 13. Ne2 {[%clk 0:02:27]}  Bxh2+ {[%clk 0:02:46]} 14. Kxh2 {[%clk 0:02:26]}  Qh4+ {[%clk 0:02:47]} 15. Kg1 {[%clk 0:02:26]}  Qxe4 {[%clk 0:02:48]} 16. d3 {[%clk 0:02:25]}  Qd5 {[%clk 0:02:43]} 17. Ra4 {[%clk 0:02:08]}  e5 {[%clk 0:02:09]} 18. f4 {[%clk 0:02:07]}  b5 {[%clk 0:02:10]} 19. axb6 {[%clk 0:01:58]}  Bb7 {[%clk 0:02:10]} 20. Rf2 {[%clk 0:01:57]}  Nxb6 {[%clk 0:02:02]} 21. Rb4 {[%clk 0:01:51]}  Qc5 {[%clk 0:01:57]} 22. c3 {[%clk 0:00:56]}  a5 {[%clk 0:01:45]} 23. Rb3 {[%clk 0:00:57]}  Bd5 {[%clk 0:01:42]} 24. c4 {[%clk 0:00:53]}  Bc6 {[%clk 0:01:41]} 25. Rxb6 {[%clk 0:00:39]}  Qxb6 {[%clk 0:01:40]} 26. fxe5 {[%clk 0:00:40]}  O-O {[%clk 0:01:26]} 27. Ng3 {[%clk 0:00:39]}  Rae8 {[%clk 0:01:19]} 28. Qg4 {[%clk 0:00:29]}  Rxe5 {[%clk 0:00:45]} 29. Bh6 {[%clk 0:00:27]}  g6 {[%clk 0:00:23]} 30. Qf4 {[%clk 0:00:24]}  Re1+ {[%clk 0:00:18]} 31. Kh2 {[%clk 0:00:24]}  Qd8 {[%clk 0:00:17]} 32. Bg5 {[%clk 0:00:15]}  Qe8 {[%clk 0:00:10]} 33. Qh4 {[%clk 0:00:07]}  f5 {[%clk 0:00:08]} 34. Qxd4 {[%clk 0:00:05]}  Qe5 {[%clk 0:00:08]} 35. Qh4 {[%clk 0:00:04]}  Rf7 {[%clk 0:00:05]} 36. Bf4 {[%clk 0:00:03]}  Qd4 {[%clk 0:00:06]} 37. Qh6 {[%clk 0:00:01]}  Qxf2 {[%clk 0:00:05]} 38. Nh5 {[%clk 0:00:01]}  Qxg2# {[%clk 0:00:06]} 0-1


[Site "https://www.chess.com"]

[Event "Titled Tuesday Blitz November 29 Early 2022"]
[White "Pranav, V"]
[Black "Matinian, Nikita"]
[WhiteFideId "25060783"]
[BlackFideId "24129100"]
[WhiteElo "2430"]
[BlackElo "2422"]
[Result "1-0"]
[Round "04"]
[TimeControl "180+1"]
[Date "2022.11.30"]
[WhiteClock "0:00:38"]
[BlackClock "0:00:37"]

1. e4 {[%clk 0:03:00]}  c5 {[%clk 0:02:59]} 2. Nf3 {[%clk 0:03:00]}  d6 {[%clk 0:03:00]} 3. c3 {[%clk 0:03:00]}  Nf6 {[%clk 0:03:00]} 4. Be2 {[%clk 0:03:01]}  g6 {[%clk 0:02:59]} 5. O-O {[%clk 0:03:01]}  Bg7 {[%clk 0:02:59]} 6. Bb5+ {[%clk 0:03:01]}  Bd7 {[%clk 0:02:59]} 7. Bxd7+ {[%clk 0:03:01]}  Nbxd7 {[%clk 0:02:59]} 8. Re1 {[%clk 0:03:01]}  O-O {[%clk 0:02:56]} 9. d4 {[%clk 0:03:01]}  Qc7 {[%clk 0:02:51]} 10. h3 {[%clk 0:02:57]}  Rac8 {[%clk 0:02:48]} 11. d5 {[%clk 0:02:54]}  e6 {[%clk 0:02:40]} 12. c4 {[%clk 0:02:44]}  exd5 {[%clk 0:02:40]} 13. exd5 {[%clk 0:02:43]}  Rce8 {[%clk 0:02:23]} 14. Rxe8 {[%clk 0:02:39]}  Rxe8 {[%clk 0:02:23]} 15. Nc3 {[%clk 0:02:40]}  Ne4 {[%clk 0:02:19]} 16. Nb5 {[%clk 0:01:35]}  Qb6 {[%clk 0:02:14]} 17. Qa4 {[%clk 0:01:33]}  a6 {[%clk 0:02:05]} 18. Nc3 {[%clk 0:01:13]}  Qc7 {[%clk 0:01:31]} 19. Nxe4 {[%clk 0:01:02]}  Rxe4 {[%clk 0:01:32]} 20. Rb1 {[%clk 0:00:55]}  b5 {[%clk 0:01:28]} 21. Qxa6 {[%clk 0:00:54]}  bxc4 {[%clk 0:01:23]} 22. Be3 {[%clk 0:00:54]}  Nb6 {[%clk 0:00:55]} 23. Nd2 {[%clk 0:00:48]}  Rxe3 {[%clk 0:00:53]} 24. fxe3 {[%clk 0:00:47]}  Bh6 {[%clk 0:00:37]} 25. Nxc4 {[%clk 0:00:39]}  Nxd5 {[%clk 0:00:37]} 26. Qa8+ {[%clk 0:00:38]} 1-0


[Site "https://www.chess.com"]